fUSD/lending_fUSD_20240720
["ID","MTS","AMOUNT","RATE_DAILY","PERIOD"]
[332695082,1721452316038,-500.0,0.00033972,14]
[332695083,1721452316047,-500.0,0.00033972,14]
[332695084,1721452316056,-1096.49,0.00033972,14]
[332695085,1721452316066,-500.0,0.00033972,14]
[332695086,1721452316075,-500.0,0.00033972,14]
[332695087,1721452316084,-500.0,0.00033972,14]
[332695088,1721452316094,-500.0,0.00033972,14]
[332695089,1721452316103,-500.0,0.00033972,14]
[332695090,1721452316113,-443.018405,0.00033972,7]
[332695091,1721452316122,-597.24,0.00033972,14]
[332695092,1721452316132,-500.0,0.00033972,14]
[332695093,1721452316141,-500.0,0.00033972,14]
[332695094,1721452316151,-500.0,0.00033972,14]
[332695095,1721452316161,-1126.75,0.00033972,14]
[332695096,1721452316171,-500.0,0.00033972,14]
[332695097,1721452316180,-592.32766309,0.00033972,14]
[332695098,1721452316190,-500.0,0.00033972,14]
[332695099,1721452316199,-500.0,0.00033972,14]
[332695100,1721452316209,-500.0,0.00033972,14]
[332695101,1721452316218,-500.0,0.00033972,14]
[332695102,1721452316228,-500.0,0.00033972,14]
[332695103,1721452316238,-500.0,0.00033972,14]
[332695104,1721452316247,-500.0,0.00033972,14]
[332695105,1721452316258,-500.0,0.00033972,14]
[332695106,1721452316267,-889.12,0.00033972,14]
[332695107,1721452316276,-500.0,0.00033972,14]
[332695108,1721452316286,-500.0,0.00033972,14]
[332695109,1721452316296,-1138.51,0.00033972,14]
[332695110,1721452316306,-1961.02,0.00033972,14]
[332695111,1721452316316,-500.0,0.00033972,14]
[332695112,1721452316325,-500.0,0.00033972,14]
[332695113,1721452316334,-151.0,0.00033972,7]
[332695114,1721452316344,-500.0,0.00033972,14]
[332695115,1721452316353,-500.0,0.00033972,14]
[332695116,1721452316364,-500.0,0.00033972,14]
[332695117,1721452316373,-500.0,0.00033972,14]
[332695118,1721452316383,-448.13,0.00033972,14]
[332695119,1721452316393,-504.37,0.00033972,14]
[332695120,1721452316403,-2681.2,0.00033972,14]
[332695121,1721452316412,-539.61,0.00033972,14]
[332695122,1721452316422,-504.63,0.00033972,14]
[332695123,1721452316432,-500.0,0.00033972,14]
[332695124,1721452316441,-500.0,0.00033972,14]
[332695125,1721452316451,-500.0,0.00033972,14]
[332695126,1721452316461,-500.0,0.00033972,14]
[332695127,1721452316470,-500.0,0.00033972,14]
[332695128,1721452316479,-1822.16,0.00033972,14]
[332695129,1721452316489,-534.1,0.00033972,14]
[332695130,1721452316498,-1103.03,0.00033972,14]
[332695131,1721452316508,-500.0,0.00033972,14]
[332695132,1721452316518,-500.0,0.00033972,14]
[332695133,1721452316527,-500.0,0.00033972,14]
[332695134,1721452316537,-500.0,0.00033972,14]
[332695135,1721452316546,-500.0,0.00033972,14]
[332695136,1721452316556,-500.0,0.00033972,14]
[332695137,1721452316565,-515.51,0.00033972,14]
[332695138,1721452316574,-500.0,0.00033972,14]
[332695139,1721452316584,-500.0,0.00033972,14]
[332695140,1721452316595,-1292.47,0.00033972,14]
[332695141,1721452316606,-500.0,0.00033972,14]
[332695142,1721452316616,-1052.37,0.00033972,14]
[332695143,1721452316625,-500.0,0.00033972,14]
[332695144,1721452316634,-500.0,0.00033972,14]
[332695145,1721452316645,-4050.58,0.00033972,14]
[332695146,1721452316655,-500.0,0.00033972,14]
[332695147,1721452316664,-500.0,0.00033972,14]
[332695148,1721452316675,-500.0,0.00033972,14]
[332695149,1721452316686,-287.26026921,0.00033972,14]
[332695150,1721452316696,-500.0,0.00033972,14]
[332695151,1721452316706,-500.0,0.00033972,14]
[332695152,1721452316715,-504.87384122,0.00033972,14]
[332695153,1721452316725,-3121.76,0.00033972,14]
[332695154,1721452316735,-2985.13,0.00033972,14]
[332695155,1721452316744,-500.0,0.00033972,14]
[332695156,1721452316753,-1811.8,0.00033972,14]
[332695157,1721452316763,-5805.68,0.00033972,14]
[332695158,1721452316773,-500.0,0.00033972,14]
[332695159,1721452316782,-500.0,0.00033972,14]
[332695160,1721452316792,-500.0,0.00033972,14]
[332695161,1721452316801,-850.99,0.00033972,14]
[332695162,1721452316810,-500.0,0.00033972,14]
[332695163,1721452316820,-526.63538859,0.00033972,14]
[332695164,1721452316829,-500.0,0.00033972,14]
[332695165,1721452316839,-675.1,0.00033972,14]
[332695166,1721452316849,-500.0,0.00033972,14]
[332695167,1721452316858,-3021.16,0.00033972,14]
[332695168,1721452316868,-1654.29,0.00033972,14]
[332695169,1721452316878,-1244.24,0.00033972,14]
[332695170,1721452316887,-1175.27,0.00033972,14]
[332695171,1721452316897,-1743.54,0.00033972,14]
[332695172,1721452316907,-500.0,0.00033972,14]
[332695173,1721452316916,-636.39,0.00033972,14]
[332695174,1721452316926,-500.0,0.00033972,14]
[332695175,1721452316936,-2447.5,0.00033972,14]
[332695176,1721452316945,-2718.0,0.00033972,14]
[332695177,1721452316955,-6951.69,0.00033972,14]
[332695178,1721452316964,-500.0,0.00033972,14]
[332695179,1721452316975,-500.0,0.00033972,14]
[332695180,1721452316984,-500.0,0.00033972,14]
[332695181,1721452316993,-500.0,0.00033972,14]
[332695182,1721452317003,-908.8,0.00033972,14]
[332695183,1721452317013,-1800.06,0.00033972,14]
[332695184,1721452317022,-975.93,0.00033972,14]
[332695185,1721452317032,-1738.49,0.00033972,14]
[332695186,1721452317042,-5201.38,0.00033972,14]
[332695187,1721452317051,-500.0,0.00033972,14]
[332695188,1721452317061,-714.27,0.00033972,14]
[332695189,1721452317070,-500.0,0.00033972,14]
[332695190,1721452317080,-9104.64,0.00033972,14]
[332695191,1721452317090,-505.87005389,0.00033972,14]
[332695192,1721452317099,-649.24230808,0.00033972,14]
[332695193,1721452317109,-504.41,0.00033972,14]
[332695194,1721452317120,-500.0,0.00033972,2]
[332695195,1721452317130,-500.0,0.00033972,14]
[332695196,1721452317142,-500.0,0.00033972,14]
[332695197,1721452317152,-500.0,0.00033972,14]
[332695198,1721452317161,-500.0,0.00033972,14]
[332695199,1721452317173,-500.0,0.00033972,14]
[332695200,1721452317183,-500.0,0.00033972,14]
[332695201,1721452317193,-5642.97,0.00033972,14]
[332695202,1721452317203,-1466.62,0.00033972,14]
[332695203,1721452317213,-1754.34,0.00033972,14]
[332695204,1721452317224,-1092.71,0.00033972,14]
[332695205,1721452317233,-506.71370264,0.00033972,14]
[332695206,1721452317243,-1704.32,0.00033972,14]
[332695207,1721452317253,-500.0,0.00033972,14]
[332695208,1721452317263,-500.0,0.00033972,14]
[332695209,1721452317272,-500.0,0.00033972,7]
[332695210,1721452317282,-500.0,0.00033972,14]
[332695211,1721452317293,-500.0,0.00033972,14]
[332695212,1721452317304,-500.0,0.00033972,14]
[332695213,1721452317313,-4325.23,0.00033972,14]
[332695214,1721452317323,-738.58,0.00033972,14]
[332695215,1721452317333,-814.05,0.00033972,14]
[332695216,1721452317343,-504.6741782,0.00033972,14]
[332695217,1721452317352,-731.2,0.00033972,14]
[332695218,1721452317362,-1471.14,0.00033972,14]
[332695219,1721452317372,-4935.97,0.00033972,14]
[332695220,1721452317382,-3510.37,0.00033972,14]
[332695221,1721452317392,-1229.29,0.00033972,14]
[332695222,1721452317402,-500.0,0.00033972,14]
[332695223,1721452317412,-1164.69,0.00033972,14]
[332695224,1721452317422,-3419.7,0.00033972,14]
[332695225,1721452317433,-795.79,0.00033972,14]
[332695226,1721452317443,-1370.44,0.00033972,14]
[332695227,1721452317457,-5518.78,0.00033972,14]
[332695228,1721452317467,-500.0,0.00033972,14]
[332695229,1721452317475,-500.0,0.00033972,14]
[332695230,1721452317485,-505.19027644,0.00033972,14]
[332695231,1721452317495,-855.69,0.00033972,14]
[332695232,1721452317504,-1428.43,0.00033972,14]
[332695233,1721452317514,-1414.58,0.00033972,14]
[332695234,1721452317523,-500.0,0.00033972,14]
[332695235,1721452317532,-1024.94,0.00033972,14]
[332695236,1721452317542,-1661.1,0.00033972,14]
[332695237,1721452317552,-1024.94,0.00033972,14]
[332695238,1721452317562,-500.0,0.00033972,14]
[332695239,1721452317571,-417.674845,0.00033972,7]
[332695240,1721452317658,-508.20954588,0.00033972,14]
[332695241,1721452317668,-867.72,0.00033972,14]
[332695242,1721452317680,-500.0,0.00033972,14]
[332695243,1721452317691,-5718.78,0.00033972,14]
[332695244,1721452317700,-601.33,0.00033972,14]
[332695245,1721452317710,-1256.52,0.00033972,14]
[332695246,1721452317720,-2364.4,0.00033972,14]
[332695247,1721452317730,-1122.57,0.00033972,14]
[332695248,1721452317739,-500.0,0.00033972,14]
[332695249,1721452317749,-417.674845,0.00033972,7]
[332695250,1721452317759,-3777.43,0.00033972,14]
[332695251,1721452317768,-1287.89,0.00033972,14]
[332695252,1721452317778,-500.0,0.00033972,14]
[332695253,1721452317787,-2909.95,0.00033972,14]
[332695254,1721452317797,-500.0,0.00033972,14]
[332695255,1721452317806,-500.0,0.00033972,14]
[332695256,1721452317816,-519.36,0.00033972,14]
[332695257,1721452317826,-500.0,0.00033972,14]
[332695258,1721452317836,-7748.76,0.00033972,14]
[332695259,1721452317846,-3248.84,0.00033972,14]
[332695260,1721452317855,-2623.21,0.00033972,14]
[332695261,1721452317866,-3223.85,0.00033972,14]
[332695262,1721452317876,-753.17,0.00033972,14]
[332695263,1721452317886,-500.0,0.00033972,14]
[332695264,1721452317895,-1040.19,0.00033972,14]
[332695265,1721452317905,-618.80859722,0.00033972,14]
[332695266,1721452317914,-1843.55,0.00033972,14]
[332695267,1721452317923,-5092.61,0.00033972,14]
[332695268,1721452317933,-500.0,0.00033972,14]
[332695269,1721452317942,-985.71,0.00033972,14]
[332695270,1721452317952,-2260.04,0.00033972,14]
[332695271,1721452317962,-500.0,0.00033972,14]
[332695272,1721452317971,-500.0,0.00033972,14]
[332695273,1721452317980,-500.0,0.00033972,14]
[332695274,1721452317989,-1121.01,0.00033972,14]
[332695275,1721452317998,-1503.86,0.00033972,14]
[332695276,1721452318008,-1524.14,0.00033972,14]
[332695277,1721452318017,-500.0,0.00033972,14]
[332695278,1721452318027,-690.64,0.00033972,14]
[332695279,1721452318036,-3751.65,0.00033972,14]
[332695280,1721452318045,-1947.42,0.00033972,14]
[332695281,1721452318055,-500.0,0.00033972,14]
[332695282,1721452318064,-950.08,0.00033972,14]
[332695283,1721452318075,-1504.54,0.00033972,14]
[332695284,1721452318084,-500.0,0.00033972,14]
[332695285,1721452318094,-2533.37,0.00033972,14]
[332695286,1721452318104,-500.0,0.00033972,14]
[332695287,1721452318113,-896.76,0.00033972,14]
[332695288,1721452318132,-500.0,0.00033972,14]
[332695289,1721452318143,-552.56,0.00033972,14]
[332695290,1721452318153,-14489.0,0.00033972,14]
[332695291,1721452318163,-1465.63,0.00033972,14]
[332695292,1721452318173,-378.34883901,0.00033972,14]
[332695293,1721452318183,-698.57,0.00033972,14]
[332695294,1721452318192,-2480.15,0.00033972,14]
[332695295,1721452318202,-696.41,0.00033972,14]
[332695296,1721452318211,-500.0,0.00033972,14]
[332695297,1721452318221,-500.0,0.00033972,14]
[332695298,1721452318231,-151.0,0.00033972,7]
[332695299,1721452318241,-2104.4,0.00033972,14]
[332695300,1721452318252,-3078.84,0.00033972,14]
[332695301,1721452318262,-500.0,0.00033972,14]
[332695302,1721452318272,-1047.59,0.00033972,14]
[332695303,1721452318282,-703.93,0.00033972,14]
[332695304,1721452318292,-884.369856,0.00033972,7]
[332695305,1721452318302,-500.0,0.00033972,14]
[332695306,1721452318312,-3181.26,0.00033972,14]
[332695307,1721452318321,-500.0,0.00033972,14]
[332695308,1721452318331,-151.0,0.00033972,7]
[332695309,1721452318341,-884.369852,0.00033972,7]
[332695310,1721452318351,-3280.76,0.00033972,14]
[332695311,1721452318360,-2612.66,0.00033972,14]
[332695312,1721452318373,-1071.06,0.00033972,14]
[332695313,1721452318383,-1049.87,0.00033972,14]
[332695314,1721452318394,-792.59,0.00033972,14]
[332695315,1721452318404,-1022.95,0.00033972,14]
[332695316,1721452318415,-6852.05,0.00033972,14]
[332695317,1721452318426,-621.06,0.00033972,14]
[332695318,1721452318436,-500.0,0.00033972,14]
[332695319,1721452318446,-500.0,0.00033972,14]
[332695320,1721452318456,-840.65,0.00033972,14]
[332695321,1721452318466,-500.0,0.00033972,14]
[332695322,1721452318475,-5155.85,0.00033972,14]
[332695323,1721452318485,-977.33,0.00033972,14]
[332695324,1721452318496,-2556.95,0.00033972,14]
[332695325,1721452318506,-7638.3,0.00033972,14]
[332695326,1721452318516,-2668.32,0.00033972,14]
[332695327,1721452318526,-680.34,0.00033972,14]
[332695328,1721452318536,-747.2,0.00033972,14]
[332695329,1721452318545,-939.37,0.00033972,14]
[332695330,1721452318555,-7834.82,0.00033972,14]
[332695331,1721452318564,-500.0,0.00033972,14]
[332695332,1721452318574,-2497.76,0.00033972,14]
[332695333,1721452318583,-209.3331637,0.00033972,7]
[332695334,1721452318592,-1116.468242,0.00033972,7]
[332695335,1721452318605,-500.0,0.00033972,14]
[332695336,1721452318614,-873.37,0.00033972,14]
[332695337,1721452318628,-1766.02,0.00033972,14]
[332695338,1721452318638,-1231.81,0.00033972,14]
[332695339,1721452318648,-1116.468245,0.00033972,7]
[332695340,1721452318658,-1298.26,0.00033972,14]
[332695341,1721452318668,-2756.06,0.00033972,14]
[332695342,1721452318678,-500.0,0.00033972,14]
[332695343,1721452318688,-508.96270391,0.00033972,14]
[332695344,1721452318697,-3099.39,0.00033972,14]
[332695345,1721452318706,-822.69,0.00033972,14]
[332695346,1721452318715,-1482.76,0.00033972,14]
[332695347,1721452318724,-675.73,0.00033972,14]
[332695348,1721452318733,-738.39,0.00033972,14]
[332695349,1721452318743,-1608.13,0.00033972,14]
[332695350,1721452318752,-6235.61,0.00033972,14]
[332695351,1721452318761,-1663.14,0.00033972,14]
[332695352,1721452318770,-3638.21,0.00033972,14]
[332695353,1721452318779,-1194.14,0.00033972,14]
[332695354,1721452318789,-506.73812498,0.00033972,30]
[332695355,1721452318798,-500.0,0.00033972,14]
[332695356,1721452318807,-500.0,0.00033972,14]
[332695357,1721452318816,-500.0,0.00033972,14]
[332695358,1721452318826,-487.48973486,0.00033972,14]
[332695359,1721452318835,-500.0,0.00033972,14]
[332695360,1721452318844,-6855.68,0.00033972,14]
[332695361,1721452318854,-500.0,0.00033972,14]
[332695362,1721452318863,-1491.07,0.00033972,14]
[332695363,1721452318874,-500.0,0.00033972,14]
[332695364,1721452318883,-500.0,0.00033972,14]
[332695365,1721452318893,-500.0,0.00033972,14]
[332695366,1721452318902,-3305.37,0.00033972,14]
[332695367,1721452318911,-500.0,0.00033972,14]
[332695368,1721452318920,-3485.91,0.00033972,14]
[332695369,1721452318929,-500.0,0.00033972,14]
[332695370,1721452318939,-3149.89,0.00033972,14]
[332695371,1721452318949,-500.0,0.00033972,14]
[332695372,1721452318958,-558.69,0.00033972,14]
[332695373,1721452318967,-500.0,0.00033972,14]
[332695374,1721452318976,-1857.46,0.00033972,14]
[332695375,1721452318985,-7942.67,0.00033972,14]
[332695376,1721452318995,-953.68,0.00033972,14]
[332695377,1721452319004,-500.0,0.00033972,14]
[332695378,1721452319014,-500.0,0.00033972,14]
[332695379,1721452319024,-1474.38,0.00033972,14]
[332695380,1721452319034,-1637.6,0.00033972,14]
[332695381,1721452319043,-3070.19,0.00033972,14]
[332695382,1721452319053,-7567.17,0.00033972,14]
[332695383,1721452319063,-678.65,0.00033972,14]
[332695384,1721452319072,-500.0,0.00033972,14]
[332695385,1721452319081,-301.412,0.00033972,7]
[332695386,1721452319090,-1535.24,0.00033972,14]
[332695387,1721452319099,-500.0,0.00033972,14]
[332695388,1721452319109,-707.35,0.00033972,14]
[332695389,1721452319119,-500.0,0.00033972,14]
[332695390,1721452319129,-301.412,0.00033972,7]
[332695391,1721452319138,-1075.68,0.00033972,14]
[332695392,1721452319147,-2237.11,0.00033972,14]
[332695393,1721452319156,-429.44623733,0.00033972,14]
[332695394,1721452319165,-868.02,0.00033972,14]
[332695395,1721452319174,-500.0,0.00033972,14]
[332695396,1721452319183,-500.0,0.00033972,14]
[332695397,1721452319192,-522.29582713,0.00033972,14]
[332695398,1721452319201,-500.0,0.00033972,14]
[332695399,1721452319210,-4021.1,0.00033972,14]
[332695400,1721452319219,-500.0,0.00033972,14]
[332695401,1721452319228,-4350.27,0.00033972,14]
[332695402,1721452319237,-2322.17,0.00033972,14]
[332695403,1721452319246,-2299.12,0.00033972,14]
[332695404,1721452319255,-624.64329653,0.00033972,14]
[332695405,1721452319265,-4549.79,0.00033972,14]
[332695406,1721452319274,-500.0,0.00033972,14]
[332695407,1721452319283,-500.0,0.00033972,14]
[332695408,1721452319292,-727.88,0.00033972,14]
[332695409,1721452319302,-690.39,0.00033972,14]
[332695410,1721452319311,-2308.61,0.00033972,14]
[332695411,1721452319321,-500.0,0.00033972,14]
[332695412,1721452319331,-897.7,0.00033972,14]
[332695413,1721452319340,-2345.67,0.00033972,14]
[332695414,1721452319350,-2219.37,0.00033972,14]
[332695415,1721452319359,-714.91,0.00033972,14]
[332695416,1721452319369,-1447.59,0.00033972,14]
[332695417,1721452319378,-3887.56,0.00033972,14]
[332695418,1721452319387,-500.0,0.00033972,14]
[332695419,1721452319397,-1829.99,0.00033972,14]
[332695420,1721452319406,-420.93068146,0.00033972,14]
[332695421,1721452319415,-500.0,0.00033972,14]
[332695422,1721452319424,-500.0,0.00033972,14]
[332695423,1721452319434,-500.0,0.00033972,14]
[332695424,1721452319443,-500.0,0.00033972,14]
[332695425,1721452319452,-3908.15,0.00033972,14]
[332695426,1721452319462,-2286.14,0.00033972,14]
[332695427,1721452319471,-500.0,0.00033972,14]
[332695428,1721452319480,-2250.72,0.00033972,14]
[332695429,1721452319489,-500.0,0.00033972,14]
[332695430,1721452319498,-630.28,0.00033972,14]
[332695431,1721452319508,-1101.72,0.00033972,14]
[332695432,1721452319517,-500.0,0.00033972,14]
[332695433,1721452319526,-3419.99,0.00033972,14]
[332695434,1721452319536,-616.25144111,0.00033972,14]
[332695435,1721452319545,-1956.67,0.00033972,14]
[332695436,1721452319554,-597.76,0.00033972,14]
[332695437,1721452319563,-2493.86,0.00033972,14]
[332695438,1721452319573,-500.0,0.00033972,14]
[332695439,1721452319582,-3643.83,0.00033972,14]
[332695440,1721452319592,-500.0,0.00033972,14]
[332695441,1721452319605,-500.0,0.00033972,14]
[332695442,1721452319614,-1806.09,0.00033972,14]
[332695443,1721452319624,-2478.72,0.00033972,14]
[332695444,1721452319634,-500.0,0.00033972,14]
[332695445,1721452319645,-500.0,0.00033972,14]
[332695446,1721452319654,-522.24,0.00033972,14]
[332695447,1721452319664,-1611.07,0.00033972,14]
[332695448,1721452319673,-330.88853714,0.00033972,14]
[332695449,1721452319684,-406.48,0.00033972,14]
[332695450,1721452319693,-4399.51,0.00033972,14]
[332695451,1721452319703,-2764.89,0.00033972,14]
[332695452,1721452319712,-500.0,0.00033972,14]
[332695453,1721452319722,-758.97,0.00033972,14]
[332695454,1721452319731,-1253.47,0.00033972,14]
[332695455,1721452319740,-2010.33,0.00033972,14]
[332695456,1721452319750,-4422.6,0.00033972,14]
[332695457,1721452319759,-500.0,0.00033972,14]
[332695458,1721452319768,-782.08,0.00033972,14]
[332695459,1721452319778,-500.0,0.00033972,14]
[332695460,1721452319787,-3857.12,0.00033972,14]
[332695461,1721452319797,-670.79,0.00033972,14]
[332695462,1721452319806,-500.0,0.00033972,14]
[332695463,1721452319816,-500.0,0.00033972,14]
[332695464,1721452319826,-738.12,0.00033972,14]
[332695465,1721452319835,-500.0,0.00033972,14]
[332695466,1721452319844,-500.0,0.00033972,14]
[332695467,1721452319854,-511.05,0.00033972,14]
[332695468,1721452319864,-500.0,0.00033972,14]
[332695469,1721452319875,-2474.15,0.00033972,14]
[332695470,1721452319884,-2276.68,0.00033972,14]
[332695471,1721452319894,-1039.92,0.00033972,2]
[332695472,1721452319904,-243.27189806,0.00033972,14]
[332695473,1721452319913,-500.0,0.00033972,14]
[332695474,1721452319922,-773.67,0.00033972,14]
[332695475,1721452319931,-500.0,0.00033972,14]
[332695476,1721452319940,-2869.88,0.00033972,14]
[332695477,1721452319950,-935.74,0.00033972,14]
[332695478,1721452319959,-1504.33,0.00033972,14]
[332695479,1721452319969,-2544.71,0.00033972,14]
[332695480,1721452319978,-500.0,0.00033972,14]
[332695481,1721452319987,-643.79,0.00033972,14]
[332695482,1721452319996,-500.0,0.00033972,14]
[332695483,1721452320006,-1507.73,0.00033972,14]
[332695484,1721452320015,-2587.33,0.00033972,14]
[332695485,1721452320024,-170.89,0.00033972,14]
[332695486,1721452320033,-1314.27,0.00033972,14]
[332695487,1721452320043,-500.0,0.00033972,14]
[332695488,1721452320052,-260.52663837,0.0003399,120]
[332695489,1721452320061,-152.88663034,0.00033995,7]
[332695490,1721452320071,-1000.0,0.00034,7]
[332695491,1721452320081,-2000.0,0.00034,30]
[332695492,1721452320090,-278636.14434802,0.00034,14]
[332695493,1721452320100,-602.60320077,0.00034,30]
[332695494,1721452320109,-2167.41,0.00034,30]
[332695495,1721452320119,-1319.53010761,0.00034,120]
[332695496,1721452320129,-3000.42636271,0.00034,3]
[332695497,1721452320139,-151.51824702,0.00034,10]
[332695498,1721452320148,-1000.0,0.00034,30]
[332695499,1721452320158,-176.732043,0.00034,7]
[332695500,1721452320168,-151.0,0.00034,7]
[332695501,1721452320177,-1203.665083,0.00034,7]
[332695502,1721452320187,-151.0,0.00034,7]
[332695503,1721452320196,-1203.665083,0.00034,7]
[332695504,1721452320206,-170.986568,0.00034,7]
[332695505,1721452320215,-170.986568,0.00034,7]
[332695506,1721452320225,-2011.61,0.00034,3]
[332695507,1721452320235,-152.88663034,0.00034001,7]
[332695508,1721452320244,-932.0,0.00034036,2]
[332695509,1721452320254,-217.54,0.000341,31]
[332695510,1721452320264,-217.54,0.000341,31]
[332695511,1721452320274,-217.54,0.000341,31]
[332695512,1721452320283,-217.54,0.000341,31]
[332695513,1721452320293,-217.54,0.000341,31]
[332695514,1721452320303,-217.54,0.000341,31]
[332695515,1721452320313,-217.54,0.000341,31]
[332695516,1721452320323,-217.54,0.000341,31]
[332695517,1721452320332,-217.54,0.000341,31]
[332695518,1721452320341,-217.54,0.000341,31]
[332695519,1721452320351,-217.54,0.000341,31]
[332695520,1721452320360,-217.54,0.000341,31]
[332695521,1721452320371,-217.54,0.000341,31]
[332695522,1721452320381,-217.54,0.000341,31]
[332695523,1721452320391,-217.54,0.000341,31]
[332695524,1721452320403,-217.54,0.000341,31]
[332695525,1721452320412,-217.54,0.000341,31]
[332695526,1721452320422,-217.54,0.000341,31]
[332695527,1721452320431,-217.54,0.000341,31]
[332695528,1721452320441,-217.54,0.000341,31]
[332695529,1721452320451,-977.75,0.0003413,30]
[332695530,1721452320460,-977.75,0.0003413,30]
[332695531,1721452320470,-152.65155588,0.00034135,7]
[332695532,1721452320479,-229.072008,0.00034148,119]
[332695533,1721452320489,-700.0,0.0003417,2]
[332695534,1721452320499,-400.0,0.0003417,2]
[332695535,1721452320508,-1200.3462611,0.0003417,2]
[332695536,1721452320518,-400.13459401,0.0003417,2]
[332695537,1721452320527,-11703.45162479,0.00034174,2]
[332695538,1721452320537,-27262.18797414,0.0003418,2]
[332695539,1721452320546,-2000.0,0.000342,12]
[332695540,1721452320555,-189.0,0.000342,23]
[332695541,1721452320565,-151.7227518,0.00034217,7]
[332695542,1721452320574,-152.88663034,0.00034218,7]
[332695543,1721452320584,-200.0,0.00034234,31]
[332695544,1721452320593,-565.614939,0.0003424,2]
[332695545,1721452320605,-1617.07,0.00034246,14]
[332695546,1721452320615,-500.0,0.00034246,14]
[332695547,1721452320626,-609.50903423,0.00034246,14]
[332695548,1721452320635,-1022.34,0.00034246,14]
[332695549,1721452320645,-500.0,0.00034246,14]
[332695550,1721452320654,-667.24,0.00034246,14]
[332695551,1721452320663,-500.0,0.00034246,14]
[332695552,1721452320674,-703.85,0.00034246,14]
[332695553,1721452320683,-1004.77,0.00034246,14]
[332695554,1721452320692,-500.0,0.00034246,14]
[332695555,1721452320702,-500.0,0.00034246,14]
[332695556,1721452320711,-500.0,0.00034246,14]
[332695557,1721452320720,-755.54,0.00034246,14]
[332695558,1721452320730,-624.11,0.00034246,14]
[332695559,1721452320739,-500.0,0.00034246,14]
[332695560,1721452320748,-500.0,0.00034246,14]
[332695561,1721452320758,-500.0,0.00034246,14]
[332695562,1721452320767,-500.0,0.00034246,14]
[332695563,1721452320776,-500.0,0.00034246,14]
[332695564,1721452320786,-1361.11,0.00034246,14]
[332695565,1721452320795,-500.0,0.00034246,14]
[332695566,1721452320805,-500.0,0.00034246,14]
[332695567,1721452320814,-500.0,0.00034246,14]
[332695568,1721452320823,-500.0,0.00034246,14]
[332695569,1721452320833,-905.48,0.00034246,14]
[332695570,1721452320843,-500.0,0.00034246,14]
[332695571,1721452320852,-636.07,0.00034246,14]
[332695572,1721452320862,-575.11,0.00034246,14]
[332695573,1721452320876,-514.46902203,0.00034246,14]
[332695574,1721452320885,-977.86,0.00034246,14]
[332695575,1721452320895,-539.28,0.00034246,14]
[332695576,1721452320904,-1018.11,0.00034246,14]
[332695577,1721452320913,-788.52,0.00034246,14]
[332695578,1721452320923,-500.0,0.00034246,14]
[332695579,1721452320932,-500.0,0.00034246,14]
[332695580,1721452320942,-663.27,0.00034246,14]
[332695581,1721452320950,-500.0,0.00034246,14]